fUSD/lending_fUSD_20240714
["ID","MTS","AMOUNT","RATE_DAILY","PERIOD"]
[332078091,1720951853147,-500.0,0.00013808,2]
[332078092,1720951853156,-500.0,0.00013808,2]
[332078093,1720951853166,-796.26,0.00013808,2]
[332078094,1720951853175,-751.72,0.00013808,2]
[332078095,1720951853185,-500.0,0.00013808,2]
[332078096,1720951853195,-1085.21,0.00013808,2]
[332078097,1720951853204,-500.0,0.00013808,2]
[332078099,1720951853213,-338.19626119,0.00013808,2]
[332078101,1720951853222,-500.0,0.00013808,2]
[332078103,1720951853231,-617.3,0.00013808,2]
[332078105,1720951853241,-640.64,0.00013808,2]
[332078107,1720951853252,-1090.98,0.00013808,2]
[332078109,1720951853262,-500.0,0.00013808,2]
[332078111,1720951853271,-2359.97,0.00013808,2]
[332078113,1720951853281,-500.0,0.00013808,2]
[332078115,1720951853290,-500.0,0.00013808,2]
[332078117,1720951853300,-500.0,0.00013808,2]
[332078119,1720951853309,-500.0,0.00013808,2]
[332078121,1720951853318,-636.56,0.00013808,2]
[332078122,1720951853327,-443.40875444,0.00013808,2]
[332078124,1720951853336,-548.16,0.00013808,2]
[332078126,1720951853345,-500.0,0.00013808,2]
[332078128,1720951853355,-500.0,0.00013808,2]
[332078130,1720951853364,-500.0,0.00013808,2]
[332078132,1720951853374,-513.31,0.00013808,2]
[332078134,1720951853383,-500.0,0.00013808,2]
[332078136,1720951853393,-500.0,0.00013808,2]
[332078138,1720951853402,-709.93,0.00013808,2]
[332078140,1720951853412,-2667.22,0.00013808,2]
[332078142,1720951853421,-736.7,0.00013808,2]
[332078143,1720951853430,-500.0,0.00013808,2]
[332078145,1720951853440,-647.01,0.00013808,2]
[332078147,1720951853449,-770.13,0.00013808,2]
[332078149,1720951853458,-973.96,0.00013808,2]
[332078151,1720951853469,-271.0642688,0.00013808,2]
[332078154,1720951853480,-1534.07,0.00013808,2]
[332078156,1720951853491,-512.4378945,0.00013808,2]
[332078158,1720951853501,-648.57,0.00013808,2]
[332078160,1720951853511,-500.0,0.00013808,2]
[332078161,1720951853521,-2978.27,0.00013808,2]
[332078162,1720951853530,-479.77067797,0.00013808,2]
[332078163,1720951853540,-569.7,0.00013808,2]
[332078164,1720951853549,-500.0,0.00013808,2]
[332078165,1720951853559,-762.45,0.00013808,2]
[332078166,1720951853568,-867.28,0.00013808,2]
[332078167,1720951853577,-500.0,0.00013808,2]
[332078168,1720951853587,-500.0,0.00013808,2]
[332078169,1720951853596,-500.0,0.00013808,2]
[332078170,1720951853607,-500.0,0.00013808,2]
[332078171,1720951853617,-500.0,0.00013808,2]
[332078172,1720951853626,-1712.4,0.00013808,2]
[332078173,1720951853635,-838.29,0.00013808,2]
[332078174,1720951853645,-1049.04,0.00013808,2]
[332078175,1720951853654,-500.0,0.00013808,2]
[332078176,1720951853663,-1389.66,0.00013808,2]
[332078177,1720951853672,-500.0,0.00013808,2]
[332078178,1720951853682,-221.744097,0.00013808,2]
[332078179,1720951853692,-626.02,0.00013808,2]
[332078180,1720951853701,-769.02,0.00013808,2]
[332078181,1720951853710,-406.92236873,0.00013808,2]
[332078182,1720951853721,-741.36,0.00013808,2]
[332078183,1720951853733,-500.0,0.00013808,2]
[332078184,1720951853746,-1080.56,0.00013808,2]
[332078185,1720951853758,-1654.9,0.00013808,2]
[332078186,1720951853770,-500.0,0.00013808,2]
[332078187,1720951853781,-5235.61,0.00013808,2]
[332078188,1720951853793,-1356.51,0.00013808,2]
[332078189,1720951853805,-500.0,0.00013808,2]
[332078190,1720951853816,-500.0,0.00013808,2]
[332078191,1720951853828,-1084.9,0.00013808,2]
[332078192,1720951853839,-693.27,0.00013808,2]
[332078193,1720951853851,-500.0,0.00013808,2]
[332078194,1720951853864,-664.02,0.00013808,2]
[332078195,1720951853876,-500.0,0.00013808,2]
[332078196,1720951853888,-880.76,0.00013808,2]
[332078197,1720951853901,-500.0,0.00013808,2]
[332078198,1720951853912,-766.66,0.00013808,2]
[332078199,1720951853924,-500.0,0.00013808,2]
[332078200,1720951853936,-602.75,0.00013808,2]
[332078201,1720951853949,-500.0,0.00013808,2]
[332078202,1720951853972,-725.45,0.00013808,2]
[332078203,1720951853984,-500.0,0.00013808,2]
[332078204,1720951853996,-500.0,0.00013808,2]
[332078205,1720951854009,-500.0,0.00013808,2]
[332078206,1720951854020,-1229.62,0.00013808,2]
[332078207,1720951854031,-500.0,0.00013808,2]
[332078208,1720951854042,-504.17,0.00013808,2]
[332078209,1720951854053,-961.65,0.00013808,2]
[332078210,1720951854066,-521.17,0.00013808,2]
[332078211,1720951854079,-686.28,0.00013808,2]
[332078212,1720951854091,-791.41,0.00013808,2]
[332078213,1720951854106,-500.0,0.00013808,2]
[332078214,1720951854118,-540.4,0.00013808,2]
[332078215,1720951854132,-705.37,0.00013808,2]
[332078216,1720951854146,-1110.66,0.00013808,2]
[332078217,1720951854159,-1284.09,0.00013808,2]
[332078218,1720951854170,-500.0,0.00013808,2]
[332078219,1720951854181,-699.23,0.00013808,2]
[332078220,1720951854191,-582.02,0.00013808,2]
[332078221,1720951854202,-979.12,0.00013808,2]
[332078222,1720951854214,-500.0,0.00013808,2]
[332078223,1720951854225,-630.72,0.00013808,2]
[332078224,1720951854239,-500.0,0.00013808,2]
[332078225,1720951854252,-503.86,0.00013808,2]
[332078226,1720951854264,-688.76,0.00013808,2]
[332078227,1720951854275,-500.0,0.00013808,2]
[332078228,1720951854289,-822.45,0.00013808,2]
[332078229,1720951854300,-150.0,0.00013815,2]
[332078230,1720951854313,-179.23312118,0.00013822,2]
[332078231,1720951854327,-59105.20535143,0.00013822,2]
[332078232,1720951854340,-150.0,0.00013832,2]
[332078233,1720951854350,-1040.087017,0.00013833,2]
[332078234,1720951854362,-611.710171,0.00013833,2]
[332078235,1720951854373,-902.176236,0.00013833,2]
[332078236,1720951854383,-150.0,0.00013836,2]
[332078237,1720951854395,-150.0,0.00013846,2]
[332078238,1720951854407,-821.01096187,0.00013849,2]
[332078239,1720951854418,-292.90710145,0.00013849,2]
[332078240,1720951854429,-1219.37202406,0.0001385,2]
[332078241,1720951854439,-150.0,0.00013852,2]
[332078242,1720951854451,-150.0,0.00013854,2]
[332078243,1720951854463,-1545.4180533,0.0001386,2]
[332078244,1720951854474,-59105.20535143,0.00013861,2]
[332078245,1720951854486,-555.6,0.00013863,2]
[332078246,1720951854497,-500.0,0.00013863,2]
[332078247,1720951854508,-549.33,0.00013863,2]
[332078248,1720951854519,-500.0,0.00013863,2]
[332078249,1720951854530,-663.42,0.00013863,2]
[332078250,1720951854542,-729.08,0.00013863,2]
[332078251,1720951854553,-500.0,0.00013863,2]
[332078252,1720951854564,-500.0,0.00013863,2]
[332078253,1720951854575,-500.0,0.00013863,2]
[332078254,1720951854586,-500.0,0.00013863,2]
[332078255,1720951854597,-350.18337462,0.00013863,2]
[332078256,1720951854609,-500.0,0.00013863,2]
[332078257,1720951854622,-500.0,0.00013863,2]
[332078258,1720951854634,-501.64,0.00013863,2]
[332078259,1720951854645,-626.62,0.00013863,2]
[332078260,1720951854656,-500.0,0.00013863,2]
[332078261,1720951854668,-591.47,0.00013863,2]
[332078262,1720951854679,-500.0,0.00013863,2]
[332078263,1720951854691,-271.023975,0.00013863,2]
[332078264,1720951854702,-500.0,0.00013863,2]
[332078265,1720951854713,-500.0,0.00013863,2]
[332078266,1720951854725,-500.0,0.00013863,2]
[332078267,1720951854737,-500.0,0.00013863,2]
[332078268,1720951854749,-500.0,0.00013863,2]
[332078269,1720951854760,-500.0,0.00013863,2]
[332078270,1720951854771,-500.0,0.00013863,2]
[332078271,1720951854782,-752.06,0.00013863,2]
[332078272,1720951854793,-647.88,0.00013863,2]
[332078273,1720951854803,-500.0,0.00013863,2]
[332078274,1720951854814,-710.55,0.00013863,2]
[332078275,1720951854825,-500.0,0.00013863,2]
[332078276,1720951854837,-874.52,0.00013863,2]
[332078277,1720951854848,-561.67,0.00013863,2]
[332078278,1720951854859,-500.0,0.00013863,2]
[332078279,1720951854870,-513.18,0.00013863,2]
[332078280,1720951854882,-1099.1,0.00013863,2]
[332078281,1720951854894,-577.19,0.00013863,2]
[332078282,1720951854904,-1251.6,0.00013863,2]
[332078283,1720951854916,-500.0,0.00013863,2]
[332078284,1720951854927,-967.36,0.00013863,2]
[332078285,1720951854939,-500.0,0.00013863,2]
[332078286,1720951854953,-500.0,0.00013863,2]
[332078287,1720951854966,-500.0,0.00013863,2]
[332078288,1720951854977,-500.0,0.00013863,2]
[332078289,1720951854990,-500.0,0.00013863,2]
[332078290,1720951855001,-548.38,0.00013863,2]
[332078291,1720951855012,-792.28,0.00013863,2]
[332078292,1720951855023,-1047.45,0.00013863,2]
[332078293,1720951855036,-500.0,0.00013863,2]
[332078294,1720951855047,-500.0,0.00013863,2]
[332078295,1720951855058,-500.0,0.00013863,2]
[332078296,1720951855069,-819.25,0.00013863,2]
[332078297,1720951855080,-798.78,0.00013863,2]
[332078298,1720951855091,-500.0,0.00013863,2]
[332078299,1720951855102,-500.0,0.00013863,2]
[332078300,1720951855113,-702.1,0.00013863,2]
[332078301,1720951855124,-500.0,0.00013863,2]
[332078302,1720951855135,-500.0,0.00013863,2]
[332078303,1720951855146,-528.97,0.00013863,2]
[332078304,1720951855157,-663.77,0.00013863,2]
[332078305,1720951855172,-500.0,0.00013863,2]
[332078306,1720951855183,-567.41,0.00013863,2]
[332078307,1720951855194,-1164.4,0.00013863,2]
[332078308,1720951855205,-500.0,0.00013863,2]
[332078309,1720951855216,-531.52,0.00013863,2]
[332078310,1720951855227,-624.46,0.00013863,2]
[332078311,1720951855239,-769.33,0.00013863,2]
[332078312,1720951855250,-714.55,0.00013863,2]
[332078313,1720951855261,-500.0,0.00013863,2]
[332078314,1720951855274,-1278.3,0.00013863,2]
[332078315,1720951855286,-664.99,0.00013863,2]
[332078316,1720951855297,-664.32,0.00013863,2]
[332078317,1720951855308,-500.0,0.00013863,2]
[332078318,1720951855319,-1397.31,0.00013863,2]
[332078319,1720951855330,-1092.83,0.00013863,2]
[332078320,1720951855340,-500.0,0.00013863,2]
[332078321,1720951855351,-828.97,0.00013863,2]
[332078322,1720951855363,-500.0,0.00013863,2]
[332078323,1720951855374,-500.0,0.00013863,2]
[332078324,1720951855386,-500.0,0.00013863,2]
[332078325,1720951855397,-500.0,0.00013863,2]
[332078326,1720951855408,-500.0,0.00013863,2]
[332078327,1720951855419,-1121.78,0.00013863,2]
[332078328,1720951855430,-500.0,0.00013863,2]
[332078329,1720951855441,-500.0,0.00013863,2]
[332078330,1720951855452,-1221.87,0.00013863,2]
[332078331,1720951855464,-500.0,0.00013863,2]
[332078332,1720951855475,-669.46,0.00013863,2]
[332078333,1720951855486,-500.0,0.00013863,2]
[332078334,1720951855498,-500.0,0.00013863,2]
[332078335,1720951855508,-1065.74,0.00013863,2]
[332078336,1720951855520,-387.68318064,0.00013863,2]
[332078337,1720951855531,-758.47,0.00013863,2]
[332078338,1720951855542,-500.0,0.00013863,2]
[332078339,1720951855553,-946.33,0.00013863,2]
[332078340,1720951855565,-524.85,0.00013863,2]
[332078341,1720951855576,-863.16,0.00013863,2]
[332078342,1720951855588,-500.0,0.00013863,2]
[332078343,1720951855598,-698.91,0.00013863,2]
[332078344,1720951855611,-500.0,0.00013863,2]
[332078345,1720951855621,-500.0,0.00013863,2]
[332078346,1720951855633,-695.87,0.00013863,2]
[332078347,1720951855643,-500.0,0.00013863,2]
[332078348,1720951855655,-500.0,0.00013863,2]
[332078349,1720951855666,-500.0,0.00013863,2]
[332078350,1720951855677,-830.28,0.00013863,2]
[332078351,1720951855688,-509.11,0.00013863,2]
[332078352,1720951855699,-500.0,0.00013863,2]
[332078353,1720951855710,-1028.67,0.00013863,2]
[332078354,1720951855721,-500.0,0.00013863,2]
[332078355,1720951855732,-756.14,0.00013863,2]
[332078356,1720951855743,-684.67,0.00013863,2]
[332078357,1720951855755,-859.96,0.00013863,2]
[332078358,1720951855770,-500.0,0.00013863,2]
[332078359,1720951855782,-500.0,0.00013863,2]
[332078360,1720951855793,-597.62,0.00013863,2]
[332078361,1720951855805,-500.0,0.00013863,2]
[332078362,1720951855816,-500.0,0.00013863,2]
[332078363,1720951855827,-500.0,0.00013863,2]
[332078364,1720951855839,-943.43,0.00013863,2]
[332078365,1720951855850,-1042.69,0.00013863,2]
[332078366,1720951855861,-500.0,0.00013863,2]
[332078367,1720951855872,-537.39285664,0.00013863,2]
[332078368,1720951855884,-500.0,0.00013863,2]
[332078369,1720951855895,-575.87,0.00013863,2]
[332078370,1720951855907,-500.0,0.00013863,2]
[332078371,1720951855917,-1061.08,0.00013863,2]
[332078372,1720951855928,-640.1,0.00013863,2]
[332078373,1720951855940,-1072.0,0.00013863,2]
[332078374,1720951855953,-1317.61,0.00013863,2]
[332078375,1720951855964,-500.0,0.00013863,2]
[332078376,1720951855976,-1075.11,0.00013863,2]
[332078377,1720951855989,-500.0,0.00013863,2]
[332078378,1720951856001,-779.93,0.00013863,2]
[332078379,1720951856013,-500.0,0.00013863,2]
[332078380,1720951856025,-708.71,0.00013863,2]
[332078381,1720951856036,-705.94,0.00013863,2]
[332078382,1720951856046,-500.0,0.00013863,2]
[332078383,1720951856057,-879.91,0.00013863,2]
[332078384,1720951856068,-500.0,0.00013863,2]
[332078385,1720951856079,-642.32,0.00013863,2]
[332078386,1720951856090,-500.0,0.00013863,2]
[332078387,1720951856101,-500.0,0.00013863,2]
[332078388,1720951856113,-500.0,0.00013863,2]
[332078389,1720951856124,-500.0,0.00013863,2]
[332078390,1720951856136,-500.0,0.00013863,2]
[332078391,1720951856147,-500.0,0.00013863,2]
[332078392,1720951856158,-1009.1,0.00013863,2]
[332078393,1720951856168,-500.0,0.00013863,2]
[332078394,1720951856179,-500.0,0.00013863,2]
[332078395,1720951856190,-500.0,0.00013863,2]
[332078396,1720951856201,-500.0,0.00013863,2]
[332078397,1720951856212,-500.0,0.00013863,2]
[332078398,1720951856224,-656.61,0.00013863,2]
[332078399,1720951856236,-500.0,0.00013863,2]
[332078400,1720951856246,-1346.69,0.00013863,2]
[332078401,1720951856257,-500.0,0.00013863,2]
[332078402,1720951856268,-1135.02,0.00013863,2]
[332078403,1720951856279,-552.77,0.00013863,2]
[332078404,1720951856290,-217.95832227,0.00013863,2]
[332078405,1720951856300,-814.17,0.00013863,2]
[332078406,1720951856311,-500.0,0.00013863,2]
[332078407,1720951856322,-500.0,0.00013863,2]
[332078408,1720951856332,-819.52,0.00013863,2]
[332078409,1720951856343,-696.38,0.00013863,2]
[332078410,1720951856353,-500.0,0.00013863,2]
[332078411,1720951856365,-809.82,0.00013863,2]
[332078412,1720951856378,-501.43,0.00013863,2]
[332078413,1720951856389,-565.6,0.00013863,2]
[332078414,1720951856401,-500.0,0.00013863,2]
[332078415,1720951856411,-645.03,0.00013863,2]
[332078416,1720951856422,-500.0,0.00013863,2]
[332078417,1720951856433,-500.0,0.00013863,2]
[332078418,1720951856444,-636.65,0.00013863,2]
[332078419,1720951856455,-500.0,0.00013863,2]
[332078420,1720951856466,-624.0,0.00013863,2]
[332078421,1720951856476,-540.31,0.00013863,2]
[332078422,1720951856487,-500.0,0.00013863,2]
[332078423,1720951856498,-590.91,0.00013863,2]
[332078424,1720951856510,-591.77,0.00013863,2]
[332078425,1720951856520,-500.0,0.00013863,2]
[332078426,1720951856531,-500.0,0.00013863,2]
[332078427,1720951856542,-500.0,0.00013863,2]
[332078428,1720951856553,-490.39,0.00013863,2]
[332078429,1720951856563,-500.0,0.00013863,2]
[332078430,1720951856574,-500.0,0.00013863,2]
[332078431,1720951856585,-500.0,0.00013863,2]
[332078432,1720951856595,-679.15,0.00013863,2]
[332078433,1720951856606,-500.0,0.00013863,2]
[332078434,1720951856617,-500.0,0.00013863,2]
[332078435,1720951856629,-500.0,0.00013863,2]
[332078436,1720951856639,-709.17,0.00013863,2]
[332078437,1720951856650,-500.0,0.00013863,2]
[332078438,1720951856661,-500.0,0.00013863,2]
[332078439,1720951856672,-500.0,0.00013863,2]
[332078440,1720951856683,-500.0,0.00013863,2]
[332078441,1720951856693,-500.0,0.00013863,2]
[332078442,1720951856704,-500.0,0.00013863,2]
[332078443,1720951856714,-543.12,0.00013863,2]
[332078444,1720951856725,-529.2,0.00013863,2]
[332078445,1720951856736,-687.6,0.00013863,2]
[332078446,1720951856746,-500.0,0.00013863,2]
[332078447,1720951856757,-500.0,0.00013863,2]
[332078448,1720951856767,-500.0,0.00013863,2]
[332078449,1720951856777,-579.49,0.00013863,2]
[332078450,1720951856789,-500.0,0.00013863,2]
[332078451,1720951856799,-500.0,0.00013863,2]
[332078452,1720951856811,-845.16,0.00013863,2]
[332078453,1720951856822,-500.0,0.00013863,2]
[332078454,1720951856834,-500.0,0.00013863,2]
[332078455,1720951856847,-777.06,0.00013863,2]
[332078456,1720951856859,-976.24,0.00013863,2]
[332078457,1720951856870,-608.57204249,0.00013863,2]
[332078458,1720951856882,-1026.17,0.00013863,2]
[332078459,1720951856895,-502.59,0.00013863,2]
[332078460,1720951856906,-766.72,0.00013863,2]
[332078461,1720951856917,-567.02,0.00013863,2]
[332078462,1720951856929,-500.0,0.00013863,2]
[332078463,1720951856942,-500.0,0.00013863,2]
[332078464,1720951856956,-557.06,0.00013863,2]
[332078465,1720951857344,-500.0,0.00013863,2]
[332078466,1720951857369,-500.0,0.00013863,2]
[332078467,1720951857385,-500.0,0.00013863,2]
[332078468,1720951857395,-253.04714619,0.00013863,2]
[332078469,1720951857404,-500.0,0.00013863,2]
[332078470,1720951857413,-752.08,0.00013863,2]
[332078471,1720951857422,-833.79,0.00013863,2]
[332078472,1720951857432,-500.0,0.00013863,2]
[332078473,1720951857441,-500.0,0.00013863,2]
[332078474,1720951857450,-523.22,0.00013863,2]
[332078475,1720951857459,-671.16,0.00013863,2]
[332078476,1720951857468,-664.48,0.00013863,2]
[332078477,1720951857478,-765.3,0.00013863,2]
[332078478,1720951857487,-862.73,0.00013863,2]
[332078479,1720951857496,-500.0,0.00013863,2]
[332078480,1720951857506,-151.0,0.00013863,2]
[332078481,1720951857515,-285.745966,0.00013863,2]
[332078482,1720951857526,-500.0,0.00013863,2]
[332078483,1720951857535,-963.85,0.00013863,2]
[332078484,1720951857545,-500.0,0.00013863,2]
[332078485,1720951857554,-500.0,0.00013863,2]
[332078486,1720951857563,-500.0,0.00013863,2]
[332078487,1720951857573,-500.0,0.00013863,2]
[332078488,1720951857582,-570.85,0.00013863,2]
[332078489,1720951857592,-535.49,0.00013863,2]
[332078490,1720951857601,-151.0,0.00013863,2]
[332078491,1720951857610,-214.519662,0.00013863,2]
[332078492,1720951857620,-500.0,0.00013863,2]
[332078493,1720951857629,-745.48,0.00013863,2]
[332078494,1720951857638,-500.0,0.00013863,2]
[332078495,1720951857648,-878.82,0.00013863,2]
[332078496,1720951857658,-500.0,0.00013863,2]
[332078497,1720951857667,-638.72960966,0.00013863,2]
[332078498,1720951857677,-500.0,0.00013863,2]
[332078499,1720951857686,-500.0,0.00013863,2]
[332078500,1720951857696,-500.0,0.00013863,2]
[332078501,1720951857705,-500.0,0.00013863,2]
[332078502,1720951857714,-745.6,0.00013863,2]
[332078503,1720951857724,-685.51,0.00013863,2]
[332078504,1720951857733,-500.0,0.00013863,2]
[332078505,1720951857742,-332.02038772,0.00013863,2]
[332078506,1720951857751,-500.0,0.00013863,2]
[332078507,1720951857760,-3662.07,0.00013863,2]
[332078508,1720951857770,-626.41,0.00013863,2]
[332078509,1720951857779,-756.11,0.00013863,2]
[332078510,1720951857789,-606.6,0.00013863,2]
[332078511,1720951857799,-1030.73,0.00013863,2]
[332078512,1720951857808,-648.06,0.00013863,2]
[332078513,1720951857817,-500.0,0.00013863,2]
[332078514,1720951857828,-943.23,0.00013863,2]
[332078515,1720951857837,-962.58,0.00013863,2]
[332078516,1720951857847,-500.0,0.00013863,2]
[332078517,1720951857856,-504.73,0.00013863,2]
[332078518,1720951857866,-500.0,0.00013863,2]
[332078519,1720951857875,-1326.92,0.00013863,2]
[332078520,1720951857884,-870.16,0.00013863,2]
[332078521,1720951857893,-500.0,0.00013863,2]
[332078522,1720951857903,-1095.66,0.00013863,2]
[332078523,1720951857912,-685.36,0.00013863,2]
[332078524,1720951857921,-500.0,0.00013863,2]
[332078525,1720951857930,-500.0,0.00013863,2]
[332078526,1720951857940,-500.0,0.00013863,2]
[332078527,1720951857955,-500.0,0.00013863,2]
[332078528,1720951857965,-571.71,0.00013863,2]
[332078529,1720951857975,-544.57,0.00013863,2]
[332078530,1720951857985,-644.56,0.00013863,2]
[332078531,1720951857996,-902.0,0.00013863,2]
[332078532,1720951858005,-500.0,0.00013863,2]
[332078533,1720951858016,-500.0,0.00013863,2]
[332078534,1720951858027,-737.03,0.00013863,2]
[332078535,1720951858038,-500.0,0.00013863,2]
[332078536,1720951858049,-788.7,0.00013863,2]
[332078537,1720951858059,-500.0,0.00013863,2]
[332078538,1720951858069,-1235.68,0.00013863,2]
[332078539,1720951858078,-578.84,0.00013863,2]
[332078540,1720951858088,-500.0,0.00013863,2]
[332078541,1720951858099,-500.0,0.00013863,2]
[332078542,1720951858115,-500.0,0.00013863,2]
[332078543,1720951858127,-500.0,0.00013863,2]
[332078544,1720951858138,-782.57,0.00013863,2]
[332078545,1720951858148,-1041.85,0.00013863,2]
[332078546,1720951858159,-500.0,0.00013863,2]
[332078547,1720951858169,-786.63,0.00013863,2]
[332078548,1720951858179,-500.0,0.00013863,2]
[332078549,1720951858188,-500.0,0.00013863,2]
[332078550,1720951858198,-500.0,0.00013863,2]
[332078551,1720951858208,-500.0,0.00013863,2]
[332078552,1720951858217,-761.83,0.00013863,2]
[332078553,1720951858226,-979.99,0.00013863,2]
[332078554,1720951858235,-507.59,0.00013863,2]
[332078555,1720951858245,-464.8250429,0.00013863,2]
[332078556,1720951858254,-500.0,0.00013863,2]
[332078557,1720951858263,-500.0,0.00013863,2]
[332078558,1720951858272,-648.78,0.00013863,2]
[332078559,1720951858281,-500.0,0.00013863,2]
[332078560,1720951858291,-500.0,0.00013863,2]
[332078561,1720951858301,-815.44,0.00013863,2]
[332078562,1720951858311,-1018.56,0.00013863,2]
[332078563,1720951858320,-588.25,0.00013863,2]
[332078564,1720951858330,-500.0,0.00013863,2]
[332078565,1720951858339,-867.79,0.00013863,2]
[332078566,1720951858348,-500.0,0.00013863,2]
[332078567,1720951858359,-500.0,0.00013863,2]
[332078568,1720951858369,-529.95,0.00013863,2]
[332078569,1720951858379,-890.67,0.00013863,2]
[332078570,1720951858389,-560.45184902,0.00013863,2]
[332078571,1720951858399,-1085.2,0.00013863,2]
[332078572,1720951858408,-500.0,0.00013863,2]
[332078573,1720951858418,-500.0,0.00013863,2]
[332078574,1720951858428,-1057.73,0.00013863,2]
[332078575,1720951858438,-922.01,0.00013863,2]
[332078576,1720951858449,-848.59,0.00013863,2]
[332078577,1720951858459,-5795.09,0.00013863,2]
[332078578,1720951858468,-558.16,0.00013863,2]
[332078579,1720951858477,-572.85,0.00013863,2]
[332078580,1720951858487,-500.0,0.00013863,2]
[332078581,1720951858496,-1289.76,0.00013863,2]
[332078582,1720951858506,-645.01,0.00013863,2]
[332078583,1720951858516,-500.0,0.00013863,2]
[332078584,1720951858525,-500.0,0.00013863,2]
[332078585,1720951858535,-684.4,0.00013863,2]
[332078586,1720951858545,-1167.06,0.00013863,2]
[332078587,1720951858554,-882.4,0.00013863,2]
[332078588,1720951858564,-624.92,0.00013863,2]
[332078589,1720951858573,-890.83,0.00013863,2]
[332078590,1720951858583,-500.0,0.00013863,2]
[332078591,1720951858594,-500.0,0.00013863,2]
[332078592,1720951858604,-1305.0,0.00013863,2]
[332078593,1720951858614,-500.0,0.00013863,2]
[332078594,1720951858624,-500.0,0.00013863,2]
[332078595,1720951858635,-500.0,0.00013863,2]
[332078596,1720951858645,-840.57,0.00013863,2]
[332078597,1720951858654,-541.49,0.00013863,2]
[332078598,1720951858664,-500.0,0.00013863,2]
[332078599,1720951858674,-500.0,0.00013863,2]
[332078600,1720951858684,-500.0,0.00013863,2]
[332078601,1720951858694,-1274.86,0.00013863,2]
[332078602,1720951858704,-902.94,0.00013863,2]
[332078603,1720951858713,-1012.94,0.00013863,2]
[332078604,1720951858723,-500.0,0.00013863,2]
[332078605,1720951858733,-500.0,0.00013863,2]
[332078606,1720951858744,-796.26,0.00013863,2]
[332078607,1720951858753,-751.72,0.00013863,2]
[332078608,1720951858763,-649.15092624,0.00013863,2]
[332078609,1720951858772,-1085.21,0.00013863,2]
[332078610,1720951858782,-500.0,0.00013863,2]
[332078611,1720951858792,-500.0,0.00013863,2]
[332078612,1720951858802,-617.3,0.00013863,2]
[332078613,1720951858812,-640.64,0.00013863,2]
[332078614,1720951858822,-1090.98,0.00013863,2]
[332078615,1720951858832,-500.0,0.00013863,2]
[332078616,1720951858842,-2359.97,0.00013863,2]
[332078617,1720951858852,-500.0,0.00013863,2]
[332078618,1720951858863,-500.0,0.00013863,2]
[332078619,1720951858873,-500.0,0.00013863,2]
[332078620,1720951858882,-500.0,0.00013863,2]
[332078621,1720951858891,-636.56,0.00013863,2]